Workbook

Sheet Титульный лист
A3: СОГЛАСОВАНО | F3: УТВЕРЖДАЮ
A6: Председатель наблюдательного совета ГАПОУ СО "Марксовский политехнический колледж" | F6: ГАПОУ СО "Марксовский политехнический колледж"
C7: Е.В. Елисеева | H7: Е.В.Гребнева
A8: (подпись) | C8: (расшифровка подписи) | F8: (подпись) | H8: (расшифровка подписи)
A9: «27» декабря 2021 г. | F9: «27» декабря 2021 г.
C16: План финансово - хозяйственной деятельности
C17: на 2022 год
C19: и плановый период 2023 и 2024 годов
I20: КОДЫ
D21: «27» декабря 2022 г. | H21: Дата | I21: 2022-12-27
H22: по Сводному реестру | I22: 63200060
A23: Наименование органа, осуществляющего функции и полномочия учредителя | D23: Министерство образования Саратовской области | H23: глава по БК | I23: 18
H24: по Сводному реестру | I24: 63220133
H25: по ОКПО | I25: 2521016
H26: ИНН | I26: 6443011725
A27: Наименование государственного бюджетного (автономного) учреждения (подразделения) | D27: государственное автономное профессиональное образовательное учреждение Саратовской области "Марксовский политехнический колледж" | H27: КПП | I27: 644301001
H28: по ОКЕИ | I28: 383
A30: Единица измерения: руб. (с точностью до второго десятичного знака)

Sheet I. Поступления и выплаты
A1: I. Поступления и выплаты
A2: Наименование показателя | B2: Код строки | C2: Код бюджетной классификации | E2: Объем финансового обеспечения, руб. (с точностью до двух знаков после запятой – 0,00) | L2: Плановый период
E3: Всего | F3: в том числе: | L3: 1-й год планового периода | M3: 2-й год планового периода
C4: Классификация доходов (расходов) бюджетов | D4: Классификация операций сектора государственного управления | F4: субсидии на финансовое обеспечение выполнения государственного задания из областного бюджета | G4: субсидии предоставляемые в соответствии с абзацем вторым пункта 1 ст. 78.1 Бюджетного кодекса Российской Федерации (субсидия на иные цели) | H4: субсидии на осуществление капитальных вложений | I4: поступления от оказания услуг (выполнения работ) на платной основе и от иной – приносящей доход деятельности
I5: всего | J5: из них гранты | K5: из них платные услуги
A6: Остаток средств на начало текущего финансового года | B6: 0001 | C6: Х | D6: Х | E6: =I6 -> 51,761.00 | H6: Х | I6: 51,761.00 | K6: 51,761.00
A7: Остаток средств на конец текущего финансового года | B7: 0002 | C7: Х | D7: Х | H7: Х
A8: Доходы, всего: | B8: 1000 | C8: Х | D8: Х | E8: =F8+G8+I8 -> 76,660,709.01 | F8: 54,171,450.00 | G8: 17,217,362.00 | I8: 5,271,897.01 | K8: 5,271,897.01 | L8: 53,376,120.00 | M8: 53,376,120.00
A9: в том числе:
A10: Субсидии на выполнение государственного задания | B10: 1100 | C10: 130 | D10: Х | E10: =F10 -> 54,171,450.00 | F10: 54,171,450.00 | G10: Х | H10: Х | I10: Х | J10: Х | K10: Х | L10: 53,376,120.00 | M10: 53,376,120.00
A11: Субсидии на иные цели | B11: 1200 | C11: 150 | D11: Х | E11: =G11 -> 17,217,362.00 | F11: Х | G11: =G29 -> 17,217,362.00 | H11: Х | I11: Х | J11: Х | K11: Х | L11: Х | M11: Х
A12: Поступления от иной приносящей доход деятельности, всего: | B12: 1300 | C12: Х | D12: Х | E12: =I12 -> 5,271,897.01 | F12: Х | G12: Х | H12: Х | I12: 5,271,897.01 | K12: =K15 -> 5,271,897.01 | L12: Х | M12: Х
A13: в том числе: | F13: Х | G13: Х | H13: Х | L13: Х | M13: Х
A14: Доходы от собственности | B14: 1310 | C14: 120 | D14: Х | F14: Х | G14: Х | H14: Х | L14: Х | M14: Х
A15: Доходы от оказания платных услуг (работ), компенсация затрат | B15: 1320 | C15: 130 | D15: Х | E15: =I15 -> 5,271,897.01 | F15: Х | G15: Х | H15: Х | I15: =K15 -> 5,271,897.01 | K15: 5,271,897.01 | L15: Х | M15: Х
A16: Доходы от штрафов, пеней, неустоек, возмещения ущерба | B16: 1330 | C16: 140 | D16: Х | F16: Х | G16: Х | H16: Х | L16: Х | M16: Х
A17: Безвозмездные поступления от бюджетов | B17: 1340 | C17: 150 | D17: Х | F17: Х | G17: Х | H17: Х | L17: Х | M17: Х
A18: Доходы от страховых взносов на обязательное социальное страхование | B18: 1350 | C18: 160 | D18: Х | F18: Х | G18: Х | H18: Х | L18: Х | M18: Х
A19: Доходы от операций с активами, всего | B19: 1400 | C19: Х | D19: Х
A20: в том числе:
A21: Прочие поступления, всего | B21: 1410 | C21: Х | D21: Х
A22: из них:
A23: увеличение остатков денежных средств за счет возврата дебиторской задолженности прошлых лет | B23: 1411 | C23: 510 | D23: Х
A24: Доходы от уменьшения стоимости основных средств | B24: 1500 | C24: 410 | D24: Х | F24: Х | G24: Х | H24: Х | L24: Х | M24: Х
A25: Доходы от уменьшения стоимости нематериальных активов | B25: 1600 | C25: 420 | D25: Х | F25: Х | G25: Х | H25: Х | L25: Х | M25: Х
A26: Доходы уменьшения стоимости непроизведенных активов | B26: 1700 | C26: 430 | D26: Х | F26: Х | G26: Х | H26: Х | L26: Х | M26: Х
A27: Доходы от уменьшения стоимости материальных запасов | B27: 1800 | C27: 440 | D27: Х | F27: Х | G27: Х | H27: Х | L27: Х | M27: Х
A28: Прочие доходы | B28: 1900 | C28: 180 | D28: Х | F28: Х | G28: Х | H28: Х | L28: Х | M28: Х
A29: Расходы за счет средств бюджета, всего: | B29: 2000 | C29: Х | D29: Х | E29: =F29+G29 -> 71,388,812.00 | F29: =F31+F48+F74+F92 -> 54,171,450.00 | G29: =G31+G63+G90+G91+G92+G48+G94+G61+G169+G174+G175+G176 -> 17,217,362.00 | H29: Х | I29: Х | J29: Х | K29: Х | L29: =L31+L48+L76+L92 -> 53,376,120.00 | M29: =M31+M48+M76+M92 -> 53,376,120.00
A30: в том числе:
A31: Оплата труда и начисления на выплаты по оплате труда, всего | B31: 2100 | C31: 111, 112, 113, 119 | D31: 210, 220, 260, 296 | E31: =F31+G31 -> 43,308,600.00 | F31: =F33+F42 -> 43,308,600.00 | G31: =G33+G42 -> 0.00 | H31: Х | I31: Х | J31: Х | K31: Х | L31: =L33+L42 -> 42,276,900.00 | M31: =M33+M42 -> 42,276,900.00
A32: из них:
A33: Заработная плата | B33: 2110 | C33: 111 | D33: 211 | E33: =F33+G33 -> 33,293,369.61 | F33: 33,293,369.61 | H33: Х | I33: Х | J33: Х | K33: Х | L33: 32,470,800.00 | M33: 32,470,800.00
A34: Социальные пособия и компенсации персоналу в денежной форме | B34: 2111 | C34: 111 | D34: 266 | H34: Х | I34: Х | J34: Х | K34: Х
A35: Иные выплаты персоналу учреждений, за исключением фонда оплаты труда | B35: 2120 | C35: 112 | D35: 210, 220, 260 | H35: Х | I35: Х | J35: Х | K35: Х
A36: в том числе:
A37: Прочие несоциальные выплаты персоналу в денежной форме | B37: 2121 | C37: 112 | D37: 212 | H37: Х | I37: Х | J37: Х | K37: Х
A38: Услуги связи | B38: 2122 | C38: 112 | D38: 221
A39: Транспортные услуги | B39: 2123 | C39: 112 | D39: 222 | H39: Х | I39: Х | J39: Х | K39: Х
A40: Прочие работы, услуги | B40: 2124 | C40: 112 | D40: 226 | H40: Х | I40: Х | J40: Х | K40: Х
A41: Социальные пособия и компенсации персоналу в денежной форме | B41: 2125 | C41: 112 | D41: 266 | H41: Х | I41: Х | J41: Х | K41: Х
A42: Начисления на выплаты по оплате труда | B42: 2130 | C42: 119 | D42: 213 | E42: =F42+G42 -> 10,015,230.39 | F42: 10,015,230.39 | H42: Х | I42: Х | J42: Х | K42: Х | L42: 9,806,100.00 | M42: 9,806,100.00
A43: Иные выплаты, за исключением фонда оплаты труда учреждений, лицам, привлекаемым согласно законодательству для выполнения отдельных полномочий | B43: 2140 | C43: 113 | D43: 220, 296 | H43: Х | I43: Х | J43: Х | K43: Х
A44: в том числе:
A45: Транспортные услуги | B45: 2141 | C45: 113 | D45: 222 | H45: Х | I45: Х | J45: Х | K45: Х
A46: Прочие работы, услуги | B46: 2142 | C46: 113 | D46: 226 | H46: Х | I46: Х | J46: Х | K46: Х
A47: Иные выплаты текущего характера физическим лицам | B47: 2143 | C47: 113 | D47: 296 | H47: Х | I47: Х | K47: Х
A48: Оплата работ, услуг, всего | B48: 2200 | C48: 244.247 | D48: 220 | E48: =F48+G48 -> 9,127,264.15 | F48: =F50+F52+F54+F55+F62 -> 9,127,264.15 | G48: =G54+G56 -> 0.00 | I48: Х | J48: Х | K48: Х | L48: =L50+L52+L54+L55+L62 -> 9,873,210.00 | M48: =M50+M52+M54+M55+M62 -> 9,873,210.00
A49: из них:
A50: Услуги связи | B50: 2210 | C50: 244 | D50: 221 | E50: =F50 -> 137,038.38 | F50: 137,038.38 | G50: Х | H50: Х | I50: Х | J50: Х | K50: Х | L50: 205,500.00 | M50: 205,500.00
A51: Транспортные услуги | B51: 2220 | C51: 244 | D51: 222 | G51: Х | H51: Х | I51: Х | J51: Х | K51: Х
A52: Коммунальные услуги | B52: 2230 | C52: 244 | D52: 223 | E52: =F52 -> 220,603.97 | F52: 220,603.97 | G52: Х | H52: Х | I52: Х | J52: Х | K52: Х | L52: 260,000.00 | M52: 260,000.00
A53: Арендная плата за пользование имуществом | B53: 2240 | C53: 244 | D53: 224 | G53: Х | H53: Х | I53: Х | J53: Х | K53: Х
A54: Работы, услуги по содержанию имущества | B54: 2250 | C54: 244 | D54: 225 | E54: =F54+G54 -> 159,012.98 | F54: 159,012.98 | I54: Х | J54: Х | K54: Х | L54: 153,720.00 | M54: 153,720.00
A55: Прочие работы, услуги | B55: 2260 | C55: 244 | D55: 220 | E55: =F55 -> 2,577,074.68 | F55: 2,577,074.68 | I55: Х | J55: Х | K55: Х | L55: 2,840,490.00 | M55: 2,840,490.00
A56: - организация питания | B56: 2261 | C56: 244 | D56: 226 | F56: Х | I56: Х | J56: Х | K56: Х | L56: Х | M56: Х
A57: - оплата труда руководителей педагогической практики по договорам гражданско-правового характера | B57: 2262 | C57: 244 | D57: 226 | G57: Х | H57: Х | I57: Х | J57: Х | K57: Х
A58: - страхование | B58: 2263 | C58: 244 | D58: 227 | G58: Х | H58: Х | I58: Х | J58: Х | K58: Х
A59: - услуги, работы для целей капитальных вложений | B59: 2264 | C59: 244 | D59: 228 | G59: Х | H59: Х | I59: Х | J59: Х | K59: Х
A60: - арендная плата за пользование земельными участками и другими обособленными природными объектами | B60: 2265 | C60: 244 | D60: 229 | G60: Х | H60: Х | I60: Х | J60: Х | K60: Х
A61: - прочие работы, услуги | B61: 2266 | C61: 244 | D61: 226 | E61: =F61 -> 2,577,074.68 | F61: 2,577,074.68 | H61: Х | I61: Х | J61: Х | K61: Х | L61: 2,840,490.00 | M61: 2,840,490.00
A62: Закупка энергетических ресурсов | B62: 2267 | C62: 247 | D62: 223 | E62: =F62 -> 6,033,534.14 | F62: 6,033,534.14 | G62: Х | H62: Х | I62: Х | J62: Х | K62: Х | L62: 6,413,500.00 | M62: 6,413,500.00
A63: Социальное обеспечение и иные выплаты населению, всего | B63: 2300 | C63: Х | D63: Х | E63: =G63 -> 1,974,190.00 | F63: Х | G63: =G65 -> 1,974,190.00 | I63: Х | J63: Х | K63: Х | L63: Х | M63: Х
A64: в том числе:
A65: Пособия по социальной помощи населению | B65: 2310 | C65: 321 | D65: 260, 296 | E65: =G65 -> 1,974,190.00 | F65: Х | G65: =G66+G67+G68+G70+G71 -> 1,974,190.00 | I65: Х | J65: Х | K65: Х | L65: Х | M65: Х
A66: - единовременное денежное пособие при выпуске | B66: 2311 | C66: 321 | D66: 262 | E66: 12,000.00 | F66: Х | G66: 12,000.00 | I66: Х | J66: Х | K66: Х | L66: Х | M66: Х
A67: - личные расходы детям-сиротам | B67: 2312 | C67: 321 | D67: 262 | E67: 25,800.00 | F67: Х | G67: 25,800.00 | I67: Х | J67: Х | K67: Х | L67: Х | M67: Х
A68: - ежегодное денежное пособие на приобретение литературы и письменных принадлежностей | B68: 2313 | C68: 321 | D68: 263 | E68: 81,030.00 | F68: Х | G68: 81,030.00 | I68: Х | J68: Х | K68: Х | L68: Х | M68: Х
A69: - компенсация на питание | B69: 2314 | C69: 321 | D69: 263 | E69: 0.00 | F69: Х | I69: Х | J69: Х | K69: Х | L69: Х | M69: Х
A70: - компенсация на мягкий инвентарь | B70: 2315 | C70: 321 | D70: 263 | E70: 1,096,672.00 | F70: Х | G70: 1,096,672.00 | I70: Х | J70: Х | K70: Х | L70: Х | M70: Х
A71: - компенсация выпускникам | B71: 2316 | C71: 321 | D71: 263 | E71: 758,688.00 | F71: Х | G71: 758,688.00 | I71: Х | J71: Х | K71: Х | L71: Х | M71: Х
A72: - иные выплаты текущего характера физическим лицам | B72: 2317 | C72: 321 | D72: 296 | F72: Х | I72: Х | J72: Х | K72: Х | L72: Х | M72: Х
A73: - прочие социальные выплаты | B73: 2318 | C73: 321 | D73: 262, 263 | F73: Х | I73: Х | J73: Х | K73: Х | L73: Х | M73: Х
A74: Прочие расходы | B74: 2400 | C74: Х | D74: Х | E74: =E76 -> 894,900.00 | F74: =F76 -> 894,900.00 | I74: Х | J74: Х | K74: Х
A75: в том числе:
A76: Уплата налогов, сборов и иных платежей | B76: 2410 | C76: 850 | D76: 290 | E76: =F76 -> 894,900.00 | F76: =F78+F79+F80+F82+F81 -> 894,900.00 | G76: Х | H76: Х | I76: Х | J76: Х | K76: Х | L76: =L78+L79+L80+L82 -> 901,020.00 | M76: =M78+M79+M80+M82 -> 901,020.00
A77: из них:
A78: Налог на имущество | B78: 2411 | C78: 851 | D78: 291 | E78: =F78 -> 137,000.00 | F78: 137,000.00 | G78: Х | H78: Х | I78: Х | J78: Х | K78: Х | L78: 137,000.00 | M78: 137,000.00
A79: Земельный налог | B79: 2412 | C79: 851 | D79: 291 | E79: 689,900.00 | F79: 689,900.00 | G79: Х | H79: Х | I79: Х | J79: Х | K79: Х | L79: 689,900.00 | M79: 689,900.00
A80: Транспортный налог | B80: 2413 | C80: 852 | D80: 291 | E80: 68,000.00 | F80: 68,000.00 | G80: Х | H80: Х | I80: Х | J80: Х | K80: Х | L80: 68,000.00 | M80: 68,000.00
A81: Уплата прочих налогов, сборов | B81: 2414 | C81: 852 | D81: 291 | E81: 0.00 | G81: Х | H81: Х | I81: Х | J81: Х | K81: Х
A82: Уплата иных платежей | B82: 2420 | C82: 853 | D82: 290 | G82: Х | H82: Х | I82: Х | J82: Х | K82: Х | L82: =L84 -> 6,120.00 | M82: =M84 -> 6,120.00
A83: из них:
A84: - налоги, пошлины и сборы | B84: 2421 | C84: 853 | D84: 291 | G84: Х | H84: Х | I84: Х | J84: Х | K84: Х | L84: 6,120.00 | M84: 6,120.00
A85: - штрафы за нарушение законодательства о налогах и сборах, законодательства о страховых взносах | B85: 2422 | C85: 853 | D85: 292 | G85: Х | H85: Х | I85: Х | J85: Х | K85: Х
A86: - штрафы за нарушение законодательства о закупках и нарушение условий контрактов (договоров) | B86: 2423 | C86: 853 | D86: 293 | G86: Х | H86: Х | I86: Х | J86: Х | K86: Х
A87: - другие экономические санкции | B87: 2424 | C87: 853 | D87: 295 | G87: Х | H87: Х | I87: Х | J87: Х | K87: Х
A88: - иные выплаты текущего характера физическим лицам | B88: 2425 | C88: 853 | D88: 296 | G88: Х | H88: Х | I88: Х | J88: Х | K88: Х
A89: - иные выплаты текущего характера организациям | B89: 2426 | C89: 853 | D89: 297 | G89: Х | H89: Х | I89: Х | J89: Х | K89: Х
A90: Материальная помощь в рамках социальной поддержки обучающихся за счет средств стипендиального фонда | B90: 2430 | C90: 340 | D90: 262 | E90: =G90 -> 304,500.00 | F90: Х | G90: 304,500.00 | I90: Х | J90: Х | K90: Х | L90: Х | M90: Х
A91: Стипендии | B91: 2440 | C91: 340 | D91: 296 | E91: =G91 -> 2,596,600.00 | F91: Х | G91: 2,596,600.00 | I91: Х | J91: Х | K91: Х | L91: Х | M91: Х
A92: Поступление нефинансовых активов, всего | B92: 3000 | C92: 244 | D92: 300 | E92: =F92+G92 -> 7,723,257.85 | F92: =F96+F94 -> 840,685.85 | G92: =G96 -> 6,882,572.00 | I92: Х | J92: Х | K92: Х | L92: =L94+L96 -> 324,990.00 | M92: =M94+M96 -> 324,990.00
A93: из них:
A94: Увеличение стоимости основных средств | B94: 3100 | C94: 244 | D94: 310 | F94: 411,684.50 | H94: Х | I94: Х | J94: Х | K94: Х
A95: Увеличение стоимости нематериальных активов | B95: 3200 | C95: 244 | D95: 320 | G95: Х | H95: Х | I95: Х | J95: Х | K95: Х
A96: Увеличение стоимости материальных запасов | B96: 3300 | C96: 244 | D96: 340 | E96: =F96+G96 -> 7,311,573.35 | F96: =F99+F102+F100+F101 -> 429,001.35 | G96: =G97+G98+G102 -> 6,882,572.00 | I96: Х | J96: Х | K96: Х | L96: =L97+L98+L99+L100+L101+L102+L103+L104 -> 324,990.00 | M96: =M97+M98+M99+M100+M101+M102+M103+M104 -> 324,990.00
A97: - увеличение стоимости лекарственных препаратов и материалов, применяемых в медицинских целях | B97: 3310 | C97: 244 | D97: 341 | E97: =F97+G97 -> 44,900.00 | F97: 0.00 | G97: 44,900.00 | I97: Х | J97: Х | K97: Х | L97: 0.00 | M97: 0.00
A98: - увеличение стоимости продуктов питания | B98: 3320 | C98: 244 | D98: 342 | E98: =F98+G98 -> 6,837,672.00 | F98: 0.00 | G98: 6,837,672.00 | I98: Х | J98: Х | K98: Х | L98: 0.00 | M98: 0.00
A99: - увеличение стоимости горюче-смазочных материалов | B99: 3330 | C99: 244 | D99: 343 | E99: 23,450.00 | F99: 23,450.00 | I99: Х | J99: Х | K99: Х | L99: 90,000.00 | M99: 90,000.00
A100: - увеличение стоимости строительных материалов | B100: 3340 | C100: 244 | D100: 344 | E100: 147,252.00 | F100: 147,252.00 | I100: Х | J100: Х | K100: Х
A101: - увеличение стоимости мягкого инвентаря | B101: 3350 | C101: 244 | D101: 345 | E101: 32,794.00 | F101: 32,794.00 | I101: Х | J101: Х | K101: Х
A102: - увеличение стоимости прочих оборотных запасов (материалов) | B102: 3360 | C102: 244 | D102: 346 | E102: 225,505.35 | F102: 225,505.35 | I102: Х | J102: Х | K102: Х | L102: 234,990.00 | M102: 234,990.00
A103: - увеличение стоимости материальных запасов для целей капитальных вложений | B103: 3370 | C103: 244 | D103: 347 | E103: 0.00 | I103: Х | J103: Х | K103: Х
A104: - увеличение стоимости прочих материальных запасов однократного применения | B104: 3380 | C104: 244 | D104: 349 | E104: =F104+G104 -> 0.00 | I104: Х | J104: Х | K104: Х
A105: Выплаты уменьшающие доход, всего | B105: 4000 | C105: 100 | D105: Х
A106: в том числе:
A107: Налог на прибыль | B107: 4010
A108: Налог на добавленную стоимость | B108: 4020
A109: Прочие налоги | B109: 4030
A110: Прочие выплаты, всего | B110: 4100 | C110: Х | D110: Х
A111: из них:
A112: Возврат в бюджет средств субсидии | B112: 4110 | C112: 610
A113: Справочно:
A114: Объем публичных обязательств, всего | B114: 4500 | C114: Х | D114: Х | I114: Х | J114: Х | K114: Х
A115: Погашение кредиторской задолженности за отчетный год и предыдущие годы всего: | B115: 5000 | C115: Х | D115: Х | F115: Х | I115: Х | J115: Х | K115: Х | L115: Х | M115: Х
A116: в том числе:
A117: Заработная плата | B117: 5100 | C117: 111 | D117: 211 | F117: Х | H117: Х | I117: Х | J117: Х | K117: Х | L117: Х | M117: Х
A118: Начисления на выплаты по оплате труда | B118: 5200 | C118: 119 | D118: 213 | F118: Х | H118: Х | I118: Х | J118: Х | K118: Х | L118: Х | M118: Х
A119: Работы, услуги по содержанию имущества | B119: 5300 | C119: 244 | D119: 225 | F119: Х | I119: Х | J119: Х | K119: Х | L119: Х | M119: Х
A120: Прочие работы, услуги | B120: 5400 | C120: 244 | D120: 226 | F120: Х | I120: Х | J120: Х | K120: Х | L120: Х | M120: Х
A121: Страхование | B121: 5510 | C121: 244 | D121: 227 | F121: Х | I121: Х | J121: Х | K121: Х | L121: Х | M121: Х
A122: Услуги, работы для целей капитальных вложений | B122: 5520 | C122: 244 | D122: 228 | F122: Х | I122: Х | J122: Х | K122: Х | L122: Х | M122: Х
A123: Арендная плата за пользование земельными участками и другими обособленными природными объектами | B123: 5530 | C123: 244 | D123: 229 | F123: Х | I123: Х | J123: Х | K123: Х | L123: Х | M123: Х
A124: Увеличение стоимости основных средств | B124: 5600 | C124: 244 | D124: 310 | F124: Х | I124: Х | J124: Х | K124: Х | L124: Х | M124: Х
A125: Увеличение стоимости материальных запасов | B125: 5700 | C125: 244 | D125: 340 | F125: Х | I125: Х | J125: Х | K125: Х | L125: Х | M125: Х
A126: - увеличение стоимости лекарственных препаратов и материалов, применяемых в медицинских целях | B126: 5710 | C126: 244 | D126: 341 | F126: Х | I126: Х | J126: Х | K126: Х | L126: Х | M126: Х
A127: - увеличение стоимости продуктов питания | B127: 5720 | C127: 244 | D127: 342 | F127: Х | I127: Х | J127: Х | K127: Х | L127: Х | M127: Х
A128: - увеличение стоимости горюче-смазочных материалов | B128: 5730 | C128: 244 | D128: 343 | F128: Х | I128: Х | J128: Х | K128: Х | L128: Х | M128: Х
A129: - увеличение стоимости строительных материалов | B129: 5740 | C129: 244 | D129: 344 | F129: Х | I129: Х | J129: Х | K129: Х | L129: Х | M129: Х
A130: - увеличение стоимости мягкого инвентаря | B130: 5750 | C130: 244 | D130: 345 | F130: Х | I130: Х | J130: Х | K130: Х | L130: Х | M130: Х
A131: - увеличение стоимости прочих оборотных запасов (материалов) | B131: 5760 | C131: 244 | D131: 346 | F131: Х | I131: Х | J131: Х | K131: Х | L131: Х | M131: Х
A132: - увеличение стоимости материальных запасов для целей капитальных вложений | B132: 5770 | C132: 244 | D132: 347 | F132: Х | I132: Х | J132: Х | K132: Х | L132: Х | M132: Х
A133: - увеличение стоимости прочих материальных запасов однократного применения | B133: 5780 | C133: 244 | D133: 349 | F133: Х | I133: Х | J133: Х | K133: Х | L133: Х | M133: Х
A134: Погашение кредиторской задолженности по мероприятиям, в том числе программным мероприятиям по исполнительным листам, всего: | B134: 6000 | C134: Х | D134: Х
A135: в том числе:
A136: Работы, услуги по содержанию имущества | B136: 6100 | C136: 244 | D136: 225
A137: Прочие работы, услуги | B137: 6200 | C137: 244 | D137: 226 | F137: Х | I137: Х | J137: Х | K137: Х | L137: Х | M137: Х
A138: Страхование | B138: 6310 | C138: 244 | D138: 227 | F138: Х | I138: Х | J138: Х | K138: Х | L138: Х | M138: Х
A139: Услуги, работы для целей капитальных вложений | B139: 6320 | C139: 244 | D139: 228 | F139: Х | I139: Х | J139: Х | K139: Х | L139: Х | M139: Х
A140: Арендная плата за пользование земельными участками и другими обособленными природными объектами | B140: 6330 | C140: 244 | D140: 229 | F140: Х | I140: Х | J140: Х | K140: Х | L140: Х | M140: Х
A141: Исполнение судебных актов Российской Федерации и мировых соглашений по возмещению причиненного вреда | B141: 6400 | C141: 831 | D141: 290 | F141: Х | I141: Х | J141: Х | K141: Х | L141: Х | M141: Х
A142: из них:
A143: Иные выплаты текущего характера физическим лицам | B143: 6410 | C143: 831 | D143: 296 | F143: Х | I143: Х | J143: Х | K143: Х | L143: Х | M143: Х
A144: Иные выплаты текущего характера организациям | B144: 6420 | C144: 831 | D144: 297 | F144: Х | I144: Х | J144: Х | K144: Х | L144: Х | M144: Х
A145: Уплата прочих налогов, сборов | B145: 6500 | C145: 852 | D145: 291 | F145: Х | I145: Х | J145: Х | K145: Х | L145: Х | M145: Х
A146: Уплата иных платежей | B146: 6600 | C146: 853 | D146: 290 | F146: Х | I146: Х | J146: Х | K146: Х | L146: Х | M146: Х
A147: в том числе: | I147: Х | J147: Х | K147: Х
A148: - налоги, пошлины и сборы | B148: 6610 | C148: 853 | D148: 291 | F148: Х | I148: Х | J148: Х | K148: Х | L148: Х | M148: Х
A149: - штрафы за нарушение законодательства о налогах и сборах, законодательства о страховых взносах | B149: 6620 | C149: 853 | D149: 292 | F149: Х | I149: Х | J149: Х | K149: Х | L149: Х | M149: Х
A150: - штрафы за нарушение законодательства о закупках и нарушение условий контрактов (договоров) | B150: 6630 | C150: 853 | D150: 293 | F150: Х | I150: Х | J150: Х | K150: Х | L150: Х | M150: Х
A151: - другие экономические санкции | B151: 6640 | C151: 853 | D151: 295 | F151: Х | I151: Х | J151: Х | K151: Х | L151: Х | M151: Х
A152: -иные выплаты текущего характера физическим лицам | B152: 6650 | C152: 853 | D152: 296 | F152: Х | I152: Х | J152: Х | K152: Х | L152: Х | M152: Х
A153: - иные выплаты текущего характера организациям | B153: 6660 | C153: 853 | D153: 297 | F153: Х | I153: Х | J153: Х | K153: Х | L153: Х | M153: Х
A154: Увеличение стоимости основных средств | B154: 6700 | C154: 244 | D154: 310 | F154: Х | I154: Х | J154: Х | K154: Х | L154: Х | M154: Х
A155: Увеличение стоимости материальных запасов | B155: 6800 | C155: 244 | D155: 340 | F155: Х | I155: Х | J155: Х | K155: Х | L155: Х | M155: Х
A156: в том числе:
A157: - увеличение стоимости лекарственных препаратов и материалов, применяемых в медицинских целях | B157: 6810 | C157: 244 | D157: 341 | F157: Х | I157: Х | J157: Х | K157: Х | L157: Х | M157: Х
A158: - увеличение стоимости продуктов питания | B158: 6820 | C158: 244 | D158: 342 | F158: Х | I158: Х | J158: Х | K158: Х | L158: Х | M158: Х
A159: - увеличение стоимости горюче-смазочных материалов | B159: 6830 | C159: 244 | D159: 343 | F159: Х | I159: Х | J159: Х | K159: Х | L159: Х | M159: Х
A160: - увеличение стоимости строительных материалов | B160: 6840 | C160: 244 | D160: 344 | F160: Х | I160: Х | J160: Х | K160: Х | L160: Х | M160: Х
A161: - увеличение стоимости мягкого инвентаря | B161: 6850 | C161: 244 | D161: 345 | F161: Х | I161: Х | J161: Х | K161: Х | L161: Х | M161: Х
A162: - увеличение стоимости прочих оборотных запасов (материалов) | B162: 6860 | C162: 244 | D162: 346 | F162: Х | I162: Х | J162: Х | K162: Х | L162: Х | M162: Х
A163: - увеличение стоимости материальных запасов для целей капитальных вложений | B163: 6870 | C163: 244 | D163: 347 | F163: Х | I163: Х | J163: Х | K163: Х | L163: Х | M163: Х
A164: - увеличение стоимости прочих материальных запасов однократного применения | B164: 6880 | C164: 244 | D164: 349 | F164: Х | I164: Х | J164: Х | K164: Х | L164: Х | M164: Х
A165: Социальное обеспечение | B165: 6900 | C165: 321 | D165: 260 | F165: Х | I165: Х | J165: Х | K165: Х | L165: Х | M165: Х
A166: из них:
A167: Пособия по социальной помощи населению в денежной форме | B167: 6910 | C167: 321 | D167: 262 | F167: Х | I167: Х | J167: Х | K167: Х | L167: Х | M167: Х
A168: Пособия по социальной помощи населению в натуральной форме | B168: 6920 | C168: 321 | D168: 263 | F168: Х | I168: Х | J168: Х | K168: Х | L168: Х | M168: Х
A169: За счет федеральных средств | B169: 7000 | C169: Х | D169: Х | E169: =G169 -> 1,747,500.00 | G169: 1,747,500.00
A170: из них:
A171: -реализация проекта/ государственной программы ('Государственная программа Саратовской области «Развитие образования в Саратовской области» подпрограмма «Развитие профессионального образования» мероприятие «Ежемесячное денежное вознаграждение за классное руководство (кураторство) педагогическим работникам государственных образовательных организаций, реализующих образовательные программы среднего профессионального образования, в том числе программы профессионального обучения для лиц с ограниченными возможностями здоровья») № 1 | B171: 7100 | C171: Х | D171: Х | E171: =G171 -> 1,747,500.00 | F171: Х | G171: 1,747,500.00 | I171: Х | J171: Х | K171: Х | L171: Х | M171: Х
B172: 7200 | C172: Х | D172: Х | F172: Х | I172: Х | J172: Х | K172: Х | L172: Х | M172: Х
A173: Государственные программы: (наименование программы) | B173: 8000 | C173: Х | D173: Х | I173: Х | J173: Х | K173: Х
A174: Энергосбережение | G174: 650,000.00
A175: Материальная база | G175: 1,262,000.00
A176: роспотребнадзор | G176: 1,800,000.00
A177: Расходы за счет доходов, полученных от платной и иной приносящей доход деятельности, всего: | B177: 9000 | C177: Х | D177: Х | E177: =E179+E196+E227+E242+E243 -> 5,155,655.89 | F177: Х | G177: Х | H177: Х | I177: =K177 -> 5,271,897.01 | K177: =K179+K196+K210+K221+K243+K227+K242 -> 5,271,897.01 | L177: =L179+L196+L210+L221+L243+L227+L242 -> 5,271,897.01 | M177: 5,271,897.01
A178: в том числе:
A179: Оплата труда и начисления на выплаты по оплате труда, всего | B179: 9100 | C179: 111, 112, 113 119 | D179: 210, 220, 260, 296 | E179: =I179 -> 2,041,551.55 | F179: Х | G179: Х | H179: Х | I179: =K179 -> 2,041,551.55 | K179: =K181+K183+K190 -> 2,041,551.55 | L179: =L181+L183+L190 -> 2,041,551.55 | M179: 2,041,551.55
A180: из них:
A181: Оплата труда и начисления на выплаты по оплате труда, всего | B181: 9110 | C181: 111 | D181: 211 | E181: =I181 -> 1,566,326.98 | F181: Х | G181: Х | H181: Х | I181: 1,566,326.98 | K181: 1,566,326.98 | L181: 1,566,326.98 | M181: 1,566,326.98
A182: Социальные пособия и компенсации персоналу в денежной форме | B182: 9111 | C182: 111 | D182: 266 | F182: Х | G182: Х | H182: Х
A183: Иные выплаты персоналу учреждений, за исключением фонда оплаты труда | B183: 9120 | C183: 112 | D183: 210, 220, 260 | F183: Х | G183: Х | H183: Х | I183: 18,200.00 | K183: 18,200.00 | L183: 18,200.00 | M183: 18,200.00
A184: в том числе:
A185: Прочие несоциальные выплаты персоналу в денежной форме | B185: 9121 | C185: 112 | D185: 212 | F185: Х | G185: Х | H185: Х | I185: =K185 -> 0.00
A186: Услуги связи | B186: 9122 | C186: 112 | D186: 221 | F186: Х | G186: Х | H186: Х
A187: Транспортные услуги | B187: 9123 | C187: 112 | D187: 222 | F187: Х | G187: Х | H187: Х
A188: Прочие работы, услуги | B188: 9124 | C188: 112 | D188: 226 | F188: Х | G188: Х | H188: Х
A189: Социальные пособия и компенсации персоналу в денежной форме | B189: 9125 | C189: 112 | D189: 266 | F189: Х | G189: Х | H189: Х
A190: Начисления на выплаты по оплате труда | B190: 9130 | C190: 119 | D190: 213 | E190: =I190 -> 457,024.57 | F190: Х | G190: Х | H190: Х | I190: =K190 -> 457,024.57 | K190: 457,024.57 | L190: 457,024.57 | M190: 457,024.57
A191: Иные выплаты, за исключением фонда оплаты труда учреждений, лицам, привлекаемым согласно законодательству для выполнения отдельных полномочий | B191: 9140 | C191: 113 | D191: 220, 296 | F191: Х | G191: Х | H191: Х
A192: в том числе:
A193: Транспортные услуги | B193: 9141 | C193: 113 | D193: 222 | F193: Х | G193: Х | H193: Х
A194: Прочие работы, услуги | B194: 9142 | C194: 113 | D194: 226 | F194: Х | G194: Х | H194: Х
A195: Иные выплаты текущего характера физическим лицам | B195: 9143 | C195: 113 | D195: 296 | F195: Х | G195: Х | H195: Х
A196: Оплата работ, услуг, всего | B196: 9200 | C196: 244 | D196: 220 | E196: =SUM(E198:E204) -> 1,221,589.37 | F196: Х | G196: Х | H196: Х | I196: =K196 -> 1,239,210.38 | K196: =K200+K201+K202+K203+K198+K199+K206 -> 1,239,210.38 | L196: =K196 -> 1,239,210.38 | M196: =L196 -> 1,239,210.38
A197: из них:
A198: Услуги связи | B198: 9210 | C198: 244 | D198: 221 | E198: =I198 -> 24.00 | F198: Х | G198: Х | H198: Х | I198: =K198 -> 24.00 | K198: 24.00 | L198: 24.00 | M198: 24.00
A199: Транспортные услуги | B199: 9220 | C199: 244 | D199: 222 | E199: =I199 -> 1,360.00 | F199: Х | G199: Х | H199: Х | I199: =K199 -> 1,360.00 | K199: 1,360.00 | L199: 1,360.00 | M199: 1,360.00
A200: Коммунальные услуги | B200: 9230 | C200: 244 | D200: 223 | E200: 110,500.00 | F200: Х | G200: Х | H200: Х | I200: =K200 -> 110,500.00 | K200: 110,500.00 | L200: 110,500.00 | M200: 110,500.00
... 55 more rows

Sheet II. Сведения по выплатам на зак
A1: II. Сведения по выплатам на закупки товаров, работ, услуг
A2: № п/п | B2: Наименование показателя | C2: Коды строк | D2: Год начала закупки | E2: Код по бюджетной классификации Российской Федерации | F2: Сумма
F3: на 2022 г. (текущий финансовый год) | G3: на 20232 г.(1-й год планового периода) | H3: на 2024 г. (2-й год планового периода) | I3: за пределами планового периода
A5: 1 | B5: 2 | C5: 3 | D5: 4 | E5: 4.1 | F5: 5 | G5: 6 | H5: 7 | I5: 8
A6: 1 | B6: Выплаты на закупку товаров, работ, услуг, всего | C6: 26000 | D6: х | E6: 244.247 | F6: =F14 -> 20,212,497.35 | G6: =G14 -> 20,212,497.35 | H6: 20,212,497.35
B7: в том числе:
A8: 1.1. | B8: по контрактам (договорам), заключенным до начала текущего финансового года без применения норм Федерального закона от 5 апреля 2013 г. № 44-ФЗ «О контрактной системе в сфере закупок товаров, работ, услуг для обеспечения государственных и муниципальных нужд» (далее - Федеральный закон № 44-ФЗ) и Федерального закона от 18 июля 2011 г. № 223-ФЗ «О закупках товаров, работ, услуг отдельными видами юридических лиц» (далее - Федеральный закон № 223-ФЗ) | C8: 26100 | D8: х
A9: 1.2. | B9: по контрактам (договорам), планируемым к заключению в соответствующем финансовом году без применения норм Федерального закона № 44-ФЗ и Федерального закона № 223-ФЗ | C9: 26200 | D9: х
A10: 1.3. | B10: по контрактам (договорам), заключенным до начала текущего финансового года с учетом требований Федерального закона № 44-ФЗ и Федерального закона № 223-ФЗ | C10: 26300 | D10: х
A11: 1.3.1 | B11: в том числе: в соответствии с Федеральным законом № 44-ФЗ | C11: 26310 | D11: x | E11: x
B12: из них: в целях достижения результатов регионального проекта, обеспечивающего достижение целей, показателей и результатов федерального проекта соответствующего национального проекта (программы) | C12: 26310.1
A13: 1.3.2 | B13: в соответствии с Федеральным законом № 223-ФЗ | C13: 26320 | D13: x | E13: x
A14: 1.4. | B14: по контрактам (договорам), планируемым к заключению в соответствующем финансовом году с учетом требований Федерального закона № 44-ФЗ и Федерального закона № 223-ФЗ | C14: 26400 | D14: х | E14: 244.247 | F14: =F16+F20+F27 -> 20,212,497.35 | G14: =F14 -> 20,212,497.35 | H14: =F14 -> 20,212,497.35
B15: в том числе:
A16: 1.4.1 | B16: за счет субсидий, предоставляемых на финансовое обеспечение выполнения государственного задания | C16: 26410 | D16: х | E16: 244.247 | F16: =F19 -> 10,198,200.00 | G16: =F16 -> 10,198,200.00 | H16: =G16 -> 10,198,200.00
B17: в том числе:
A18: 1.4.1.1. | B18: в соответствии с Федеральным законом № 44-ФЗ | C18: 26411 | D18: х
A19: 1.4.1.2. | B19: в соответствии с Федеральным законом № 223-ФЗ | C19: 26412 | D19: х | E19: 244.247 | F19: 10,198,200.00 | G19: =F19 -> 10,198,200.00 | H19: =G19 -> 10,198,200.00
A20: 1.4.2. | B20: за счет субсидий, предоставляемых в соответствии с абзацем вторым пункта 1 статьи 78.1 Бюджетного кодекса Российской Федерации (субсидии на иные цели) | C20: 26420 | D20: х | E20: 244 | F20: 6,882,572.00
B21: в том числе:
A22: 1.4.2.1 | B22: в соответствии с Федеральным законом № 44-ФЗ | C22: 26421 | D22: х
B23: из них: в целях достижения результатов регионального проекта, обеспечивающего достижение целей, показателей и результатов федерального проекта соответствующего национального проекта (программы) | C23: 26421.1 | D23: x
A24: 1.4.2.2. | B24: в соответствии с Федеральным законом № 223-ФЗ | C24: 26422 | D24: х | E24: 244 | F24: =F20 -> 6,882,572.00
A25: 1.4.3. | B25: за счет субсидий, предоставляемых на осуществление капитальных вложений | C25: 26430 | D25: х
B26: из них: в целях достижения результатов регионального проекта, обеспечивающего достижение целей, показателей и результатов федерального проекта соответствующего национального проекта (программы) | C26: 26430.1 | D26: x
A27: 1.4.5. | B27: за счет прочих источников финансового обеспечения | C27: 26450 | D27: х | E27: 244 | F27: 3,131,725.35 | G27: 3,131,725.35 | H27: 3,131,725.35
B28: в том числе:
A29: 1.4.5.1. | B29: в соответствии с Федеральным законом № 44-ФЗ | C29: 26451 | D29: х
B30: из них: в целях достижения результатов регионального проекта, обеспечивающего достижение целей, показателей и результатов федерального проекта соответствующего национального проекта (программы) | C30: 26451.1 | D30: x
A31: 1.4.5.2. | B31: в соответствии с Федеральным законом № 223-ФЗ | C31: 26452 | D31: х | E31: 244 | F31: =F27 -> 3,131,725.35 | G31: =F31 -> 3,131,725.35 | H31: =G31 -> 3,131,725.35
A32: 2. | B32: Итого по контрактам, планируемым к заключению в соответствующем финансовом году в соответствии с Федеральным законом № 44-ФЗ, по соответствующему году закупки | C32: 26500 | D32: х
B33: в том числе по году начала закупки: | C33: 26510
A34: 3. | B34: Итого по договорам, планируемым к заключению в соответствующем финансовом году в соответствии с Федеральным законом № 223-ФЗ, по соответствующему году закупки | C34: 26600 | D34: х | E34: 244.247 | F34: =F19+F24+F31 -> 20,212,497.35 | G34: =G19+G24+G31 -> 13,329,925.35 | H34: =H19+H24+H31 -> 13,329,925.35
B35: в том числе по году начала закупки: | C35: 26610 | E35: 244.247 | F35: =F34 -> 20,212,497.35 | G35: =G34 -> 13,329,925.35 | H35: 13,329,925.35
B38: Главный бухгалтер государственного бюджетного (автономного) учреждения (подразделения)
F39: А.А. Лыгина
D40: (подпись) | F40: (расшифровка подписи)
B41: Исполнитель | F41: А.А. Лыгина
D42: (подпись) | F42: (расшифровка подписи)
B43: Директор | F43: Е.В. Гребнева
D44: (подпись) | F44: (расшифровка подписи)
B45: Телефон | F45: 8(84567) 5-54-16
F46: (телефон)
B48: «27» декабря 2022 г.
